fUSD/lending_fUSD_20251019
["ID","MTS","AMOUNT","RATE_DAILY","PERIOD"]
[391841687,1760904653840,-522.42,0.00033698,8]
[391841688,1760904653987,-500.0,0.00033698,8]
[391841689,1760904653999,-500.0,0.00033698,8]
[391841690,1760904654010,-500.0,0.00033698,8]
[391841691,1760904654021,-500.0,0.00033698,8]
[391841692,1760904654031,-500.0,0.00033698,8]
[391841693,1760904654042,-536.37,0.00033698,8]
[391841694,1760904654056,-915.17,0.00033698,8]
[391841695,1760904654072,-500.0,0.00033698,8]
[391841696,1760904654083,-500.0,0.00033698,8]
[391841697,1760904654094,-503.57061352,0.00033698,8]
[391841698,1760904654104,-500.0,0.00033698,8]
[391841699,1760904654115,-500.0,0.00033698,2]
[391841700,1760904654126,-1022.13,0.00033698,8]
[391841701,1760904654137,-500.0,0.00033698,8]
[391841702,1760904654147,-500.0,0.00033698,8]
[391841703,1760904654158,-622.78,0.00033698,8]
[391841704,1760904654171,-909.47,0.00033698,8]
[391841705,1760904654181,-500.0,0.00033698,8]
[391841706,1760904654191,-500.0,0.00033698,8]
[391841707,1760904654201,-500.0,0.00033698,8]
[391841708,1760904654210,-500.0,0.00033698,8]
[391841709,1760904654220,-500.0,0.00033698,8]
[391841710,1760904654229,-751.54,0.00033698,8]
[391841711,1760904654238,-500.0,0.00033698,8]
[391841712,1760904654247,-500.0,0.00033698,8]
[391841713,1760904654258,-500.0,0.00033698,8]
[391841714,1760904654270,-631.91,0.00033698,8]
[391841715,1760904654281,-311.10582099,0.00033698,8]
[391841716,1760904654291,-500.0,0.00033698,8]
[391841717,1760904654302,-887.51,0.00033698,8]
[391841718,1760904654312,-500.0,0.00033698,8]
[391841719,1760904654323,-154.36195382,0.00033698,8]
[391841720,1760904654333,-500.0,0.00033698,8]
[391841721,1760904654345,-500.0,0.00033698,8]
[391841722,1760904654355,-159.76,0.00033698,8]
[391841723,1760904654366,-500.0,0.00033698,8]
[391841724,1760904654376,-643.76,0.00033698,8]
[391841725,1760904654387,-500.0,0.00033698,8]
[391841726,1760904654398,-529.86149806,0.00033698,8]
[391841727,1760904654409,-1150.65,0.00033698,8]
[391841728,1760904654420,-500.0,0.00033698,8]
[391841729,1760904654430,-500.0,0.00033698,8]
[391841730,1760904654441,-500.0,0.00033698,8]
[391841731,1760904654451,-500.0,0.00033698,8]
[391841732,1760904654462,-500.0,0.00033698,8]
[391841733,1760904654473,-500.0,0.00033698,8]
[391841734,1760904654483,-500.0,0.00033698,8]
[391841735,1760904654494,-500.0,0.00033698,8]
[391841736,1760904654504,-500.0,0.00033698,8]
[391841737,1760904654515,-500.0,0.00033698,8]
[391841738,1760904654527,-500.0,0.00033698,8]
[391841739,1760904654537,-519.22,0.00033698,8]
[391841740,1760904654547,-500.0,0.00033698,8]
[391841741,1760904654558,-500.0,0.00033698,8]
[391841742,1760904654568,-500.0,0.00033698,8]
[391841743,1760904654578,-1084.51,0.00033698,8]
[391841744,1760904654589,-500.0,0.00033698,8]
[391841745,1760904654600,-582.06261556,0.00033698,8]
[391841746,1760904654613,-1084.93,0.00033698,8]
[391841747,1760904654623,-500.0,0.00033698,8]
[391841748,1760904654634,-500.0,0.00033698,8]
[391841749,1760904654644,-300.0,0.00033698,2]
[391841750,1760904654655,-500.0,0.00033698,8]
[391841751,1760904654666,-624.15,0.00033698,8]
[391841752,1760904654676,-668.57,0.00033698,8]
[391841753,1760904654686,-500.0,0.00033698,8]
[391841754,1760904654697,-500.0,0.00033698,8]
[391841755,1760904654709,-775.87,0.00033698,8]
[391841756,1760904654719,-284.94422231,0.00033698,8]
[391841757,1760904654730,-500.0,0.00033698,8]
[391841758,1760904654741,-500.0,0.00033698,8]
[391841759,1760904654752,-500.0,0.00033698,8]
[391841760,1760904654764,-500.0,0.00033698,8]
[391841761,1760904654775,-500.0,0.00033698,8]
[391841762,1760904654786,-500.0,0.00033698,8]
[391841763,1760904654797,-799.27,0.00033698,8]
[391841764,1760904654808,-500.0,0.00033698,8]
[391841765,1760904654818,-576.24,0.00033698,8]
[391841766,1760904654830,-500.0,0.00033698,8]
[391841767,1760904654840,-500.0,0.00033698,8]
[391841768,1760904654851,-500.0,0.00033698,8]
[391841769,1760904654861,-500.0,0.00033698,8]
[391841770,1760904654871,-500.0,0.00033698,8]
[391841771,1760904654882,-500.0,0.00033698,8]
[391841772,1760904654892,-669.43,0.00033698,8]
[391841773,1760904654902,-490.3493997,0.00033698,8]
[391841774,1760904654912,-1000.0,0.00033698,8]
[391841775,1760904654923,-500.0,0.00033698,8]
[391841776,1760904654933,-500.0,0.00033698,8]
[391841777,1760904654943,-531.58395399,0.00033698,8]
[391841778,1760904654953,-500.0,0.00033698,8]
[391841779,1760904654963,-871.21,0.00033698,8]
[391841780,1760904654973,-455.21111088,0.00033698,8]
[391841781,1760904654983,-500.0,0.00033698,8]
[391841782,1760904654994,-540.9,0.00033698,8]
[391841783,1760904655005,-500.0,0.00033698,8]
[391841784,1760904655015,-500.0,0.00033698,8]
[391841785,1760904655025,-989.94,0.00033698,8]
[391841786,1760904655036,-500.0,0.00033698,8]
[391841787,1760904655047,-500.0,0.00033698,8]
[391841788,1760904655057,-500.0,0.00033698,8]
[391841789,1760904655066,-500.0,0.00033698,8]
[391841790,1760904655077,-500.0,0.00033698,8]
[391841791,1760904655087,-500.0,0.00033698,8]
[391841792,1760904655098,-500.0,0.00033698,2]
[391841793,1760904655108,-500.0,0.00033698,2]
[391841794,1760904655119,-500.0,0.00033698,8]
[391841795,1760904655129,-572.04,0.00033698,8]
[391841796,1760904655139,-1077.72,0.00033698,8]
[391841797,1760904655149,-500.0,0.00033698,8]
[391841798,1760904655159,-500.0,0.00033698,8]
[391841799,1760904655169,-500.0,0.00033698,8]
[391841800,1760904655179,-500.0,0.00033698,8]
[391841801,1760904655190,-500.0,0.00033698,8]
[391841802,1760904655202,-500.0,0.00033698,8]
[391841803,1760904655213,-500.0,0.00033698,8]
[391841804,1760904655225,-500.0,0.00033698,8]
[391841805,1760904655236,-500.0,0.00033698,8]
[391841806,1760904655247,-476.38603909,0.00033698,8]
[391841807,1760904655257,-500.0,0.00033698,8]
[391841808,1760904655267,-500.0,0.00033698,8]
[391841809,1760904655276,-506.22383772,0.00033698,8]
[391841810,1760904655287,-500.0,0.00033698,8]
[391841811,1760904655297,-500.0,0.00033698,8]
[391841812,1760904655311,-500.0,0.00033698,8]
[391841813,1760904655323,-500.0,0.00033698,8]
[391841814,1760904655333,-484.48,0.00033698,8]
[391841815,1760904655343,-500.0,0.00033698,8]
[391841816,1760904655353,-500.0,0.00033698,8]
[391841817,1760904655363,-960.1,0.00033698,8]
[391841818,1760904655373,-500.0,0.00033698,8]
[391841819,1760904655383,-500.0,0.00033698,8]
[391841820,1760904655392,-515.62745774,0.00033698,8]
[391841821,1760904655403,-813.27,0.00033698,8]
[391841822,1760904655413,-1026.45,0.00033698,8]
[391841823,1760904655423,-500.0,0.00033698,8]
[391841824,1760904655433,-500.0,0.00033698,8]
[391841825,1760904655443,-500.0,0.00033698,8]
[391841826,1760904655452,-500.0,0.00033698,8]
[391841827,1760904655463,-1000.0,0.00033698,30]
[391841828,1760904655473,-850.64,0.00033698,8]
[391841829,1760904655482,-500.0,0.00033698,8]
[391841830,1760904655492,-995.78,0.00033698,8]
[391841831,1760904655502,-500.0,0.00033698,8]
[391841832,1760904655512,-509.25,0.00033698,8]
[391841833,1760904655522,-500.0,0.00033698,8]
[391841834,1760904655531,-1186.62,0.00033698,8]
[391841835,1760904655541,-725.52,0.00033698,8]
[391841836,1760904655551,-888.87,0.00033698,8]
[391841837,1760904655560,-500.0,0.00033698,8]
[391841838,1760904655570,-500.0,0.00033698,8]
[391841839,1760904655580,-500.0,0.00033698,8]
[391841840,1760904655590,-500.0,0.00033698,8]
[391841841,1760904655600,-508.11,0.00033698,8]
[391841842,1760904655611,-4330.59,0.00033698,2]
[391841843,1760904655621,-849.17,0.00033698,8]
[391841844,1760904655631,-821.63,0.00033698,8]
[391841845,1760904655641,-500.0,0.00033698,8]
[391841846,1760904655652,-500.0,0.00033698,8]
[391841847,1760904655661,-500.0,0.00033698,8]
[391841848,1760904655672,-502.38,0.00033698,8]
[391841849,1760904655683,-500.0,0.00033698,8]
[391841850,1760904655693,-500.0,0.00033698,8]
[391841851,1760904655703,-500.0,0.00033698,8]
[391841852,1760904655713,-398.37652161,0.00033698,8]
[391841853,1760904655724,-500.0,0.00033698,8]
[391841854,1760904655734,-1334.8,0.00033698,8]
[391841855,1760904655744,-500.0,0.00033698,8]
[391841856,1760904655758,-500.0,0.00033698,8]
[391841857,1760904655768,-500.0,0.00033698,8]
[391841858,1760904655778,-1079.96,0.00033698,8]
[391841859,1760904655789,-500.0,0.00033698,8]
[391841860,1760904655800,-500.0,0.00033698,8]
[391841861,1760904655810,-1341.47,0.00033698,8]
[391841862,1760904655820,-515.88,0.00033698,8]
[391841863,1760904655832,-500.0,0.00033698,8]
[391841864,1760904655842,-677.16,0.00033698,8]
[391841865,1760904655852,-500.0,0.00033698,8]
[391841866,1760904655862,-500.0,0.00033698,8]
[391841867,1760904655872,-265.44362538,0.00033698,8]
[391841868,1760904655882,-500.0,0.00033698,8]
[391841869,1760904655892,-536.88927157,0.00033698,8]
[391841870,1760904655902,-556.10517202,0.00033698,8]
[391841871,1760904655913,-500.0,0.00033698,8]
[391841872,1760904655923,-500.0,0.00033698,8]
[391841873,1760904655933,-500.0,0.00033698,8]
[391841874,1760904655943,-500.0,0.00033698,8]
[391841875,1760904655952,-751.77,0.00033698,2]
[391841876,1760904655962,-500.0,0.00033698,8]
[391841877,1760904655972,-500.0,0.00033698,8]
[391841878,1760904655982,-500.0,0.00033698,8]
[391841879,1760904655992,-182.33926556,0.00033698,8]
[391841880,1760904656002,-500.0,0.00033698,8]
[391841881,1760904656012,-512.85228187,0.00033698,8]
[391841882,1760904656022,-478.74992173,0.00033698,8]
[391841883,1760904656032,-500.0,0.00033698,8]
[391841884,1760904656042,-500.0,0.00033698,8]
[391841885,1760904656052,-1129.79,0.00033698,8]
[391841886,1760904656062,-792.06,0.00033698,8]
[391841887,1760904656072,-538.55,0.00033698,2]
[391841888,1760904656081,-500.0,0.00033698,8]
[391841889,1760904656091,-500.0,0.00033698,8]
[391841890,1760904656100,-250.0,0.00033721,5]
[391841891,1760904656114,-168.0,0.00033769,2]
[391841892,1760904656124,-411.0,0.00033819,7]
[391841893,1760904656135,-162.26925,0.0003385,2]
[391841894,1760904656146,-522.42,0.00033879,8]
[391841895,1760904656157,-246565.83124615,0.0003388,2]
[391841896,1760904656167,-2385.92,0.000339,2]
[391841897,1760904656177,-743.33456228,0.000339,120]
[391841898,1760904656187,-150.0,0.0003394,2]
[391841899,1760904656197,-939.0,0.00033945,2]
[391841900,1760904656207,-522.42,0.00033971,8]
[391841901,1760904656218,-390.73,0.00033972,8]
[391841902,1760904656227,-500.0,0.00033972,8]
[391841903,1760904656242,-500.0,0.00033972,8]
[391841904,1760904656253,-500.0,0.00033972,8]
[391841905,1760904656263,-500.0,0.00033972,8]
[391841906,1760904656274,-522.42,0.00033972,8]
[391841907,1760904656284,-500.0,0.00033972,8]
[391841908,1760904656294,-500.0,0.00033972,8]
[391841909,1760904656304,-500.0,0.00033972,8]
[391841910,1760904656314,-500.0,0.00033972,8]
[391841911,1760904656324,-500.0,0.00033972,8]
[391841912,1760904656334,-536.37,0.00033972,8]
[391841913,1760904656344,-915.17,0.00033972,8]
[391841914,1760904656354,-500.0,0.00033972,8]
[391841915,1760904656363,-500.0,0.00033972,8]
[391841916,1760904656373,-500.0,0.00033972,8]
[391841917,1760904656383,-500.0,0.00033972,2]
[391841918,1760904656392,-1022.13,0.00033972,8]
[391841919,1760904656401,-500.0,0.00033972,8]
[391841920,1760904656411,-500.0,0.00033972,8]
[391841921,1760904656421,-622.78,0.00033972,8]
[391841922,1760904656430,-909.47,0.00033972,8]
[391841923,1760904656440,-500.0,0.00033972,8]
[391841924,1760904656450,-500.0,0.00033972,8]
[391841925,1760904656459,-500.0,0.00033972,8]
[391841926,1760904656469,-500.0,0.00033972,8]
[391841927,1760904656479,-500.0,0.00033972,8]
[391841928,1760904656488,-751.54,0.00033972,8]
[391841929,1760904656498,-500.0,0.00033972,8]
[391841930,1760904656508,-500.0,0.00033972,8]
[391841931,1760904656517,-500.0,0.00033972,8]
[391841932,1760904656563,-631.91,0.00033972,8]
[391841933,1760904656573,-500.0,0.00033972,8]
[391841934,1760904656583,-887.51,0.00033972,8]
[391841935,1760904656594,-500.0,0.00033972,8]
[391841936,1760904656603,-500.0,0.00033972,8]
[391841937,1760904656614,-500.0,0.00033972,8]
[391841938,1760904656623,-500.0,0.00033972,8]
[391841939,1760904656632,-643.76,0.00033972,8]
[391841940,1760904656642,-553.25302031,0.00033972,8]
[391841941,1760904656652,-1150.65,0.00033972,8]
[391841942,1760904656662,-500.0,0.00033972,8]
[391841943,1760904656673,-500.0,0.00033972,8]
[391841944,1760904656683,-500.0,0.00033972,8]
[391841945,1760904656694,-500.0,0.00033972,8]
[391841946,1760904656704,-500.0,0.00033972,8]
[391841947,1760904656717,-421.96246668,0.00033972,8]
[391841948,1760904656727,-500.0,0.00033972,8]
[391841949,1760904656737,-500.0,0.00033972,8]
[391841950,1760904656747,-500.0,0.00033972,8]
[391841951,1760904656761,-500.0,0.00033972,8]
[391841952,1760904656771,-500.0,0.00033972,8]
[391841953,1760904656780,-519.22,0.00033972,8]
[391841954,1760904656790,-503.7476336,0.00033972,8]
[391841955,1760904656800,-500.0,0.00033972,8]
[391841956,1760904656809,-500.0,0.00033972,8]
[391841957,1760904656819,-1084.51,0.00033972,8]
[391841958,1760904656828,-500.0,0.00033972,8]
[391841959,1760904656837,-1084.93,0.00033972,8]
[391841960,1760904656846,-500.0,0.00033972,8]
[391841961,1760904656855,-289.2722021,0.00033972,8]
[391841962,1760904656865,-300.0,0.00033972,2]
[391841963,1760904656874,-500.0,0.00033972,8]
[391841964,1760904656883,-624.15,0.00033972,8]
[391841965,1760904656893,-668.57,0.00033972,8]
[391841966,1760904656902,-500.0,0.00033972,8]
[391841967,1760904656912,-500.0,0.00033972,8]
[391841968,1760904656922,-775.87,0.00033972,8]
[391841969,1760904656933,-500.0,0.00033972,8]
[391841970,1760904656942,-500.0,0.00033972,8]
[391841971,1760904656952,-500.0,0.00033972,8]
[391841972,1760904656963,-500.0,0.00033972,8]
[391841973,1760904656972,-500.0,0.00033972,8]
[391841974,1760904656982,-500.0,0.00033972,8]
[391841975,1760904656992,-799.27,0.00033972,8]
[391841976,1760904657001,-500.0,0.00033972,8]
[391841977,1760904657011,-576.24,0.00033972,8]
[391841978,1760904657022,-500.0,0.00033972,8]
[391841979,1760904657032,-500.0,0.00033972,8]
[391841980,1760904657042,-500.0,0.00033972,8]
[391841981,1760904657051,-500.0,0.00033972,8]
[391841982,1760904657060,-500.0,0.00033972,8]
[391841983,1760904657071,-500.0,0.00033972,8]
[391841984,1760904657080,-669.43,0.00033972,8]
[391841985,1760904657090,-1000.0,0.00033972,8]
[391841986,1760904657101,-500.0,0.00033972,8]
[391841987,1760904657111,-431.78853111,0.00033972,8]
[391841988,1760904657121,-500.0,0.00033972,8]
[391841989,1760904657131,-871.21,0.00033972,8]
[391841990,1760904657141,-500.0,0.00033972,8]
[391841991,1760904657152,-540.9,0.00033972,8]
[391841992,1760904657163,-567.14541344,0.00033972,8]
[391841993,1760904657172,-500.0,0.00033972,8]
[391841994,1760904657182,-500.0,0.00033972,8]
[391841995,1760904657191,-989.94,0.00033972,8]
[391841996,1760904657201,-500.0,0.00033972,8]
[391841997,1760904657213,-500.0,0.00033972,8]
[391841998,1760904657223,-500.0,0.00033972,8]
[391841999,1760904657232,-500.0,0.00033972,8]
[391842000,1760904657241,-500.0,0.00033972,8]
[391842001,1760904657251,-500.0,0.00033972,2]
[391842002,1760904657261,-500.0,0.00033972,2]
[391842003,1760904657272,-500.0,0.00033972,8]
[391842004,1760904657282,-572.04,0.00033972,8]
[391842005,1760904657292,-1077.72,0.00033972,8]
[391842006,1760904657302,-500.0,0.00033972,8]
[391842007,1760904657311,-500.0,0.00033972,8]
[391842008,1760904657323,-500.0,0.00033972,8]
[391842009,1760904657333,-500.0,0.00033972,8]
[391842010,1760904657343,-500.0,0.00033972,8]
[391842011,1760904657354,-500.0,0.00033972,8]
[391842012,1760904657363,-500.0,0.00033972,8]
[391842013,1760904657373,-500.0,0.00033972,8]
[391842014,1760904657382,-500.0,0.00033972,8]
[391842015,1760904657392,-500.0,0.00033972,8]
[391842016,1760904657402,-500.0,0.00033972,8]
[391842017,1760904657412,-500.0,0.00033972,8]
[391842018,1760904657422,-500.0,0.00033972,8]
[391842019,1760904657432,-500.0,0.00033972,8]
[391842020,1760904657441,-500.0,0.00033972,8]
[391842021,1760904657451,-960.1,0.00033972,8]
[391842022,1760904657461,-500.0,0.00033972,8]
[391842023,1760904657471,-500.0,0.00033972,8]
[391842024,1760904657481,-813.27,0.00033972,8]
[391842025,1760904657491,-1026.45,0.00033972,8]
[391842026,1760904657500,-500.0,0.00033972,8]
[391842027,1760904657511,-500.0,0.00033972,8]
[391842028,1760904657522,-500.0,0.00033972,8]
[391842029,1760904657532,-376.10077841,0.00033972,8]
[391842030,1760904657543,-1000.0,0.00033972,30]
[391842031,1760904657552,-850.64,0.00033972,8]
[391842032,1760904657564,-500.0,0.00033972,8]
[391842033,1760904657574,-995.78,0.00033972,8]
[391842034,1760904657585,-500.0,0.00033972,8]
[391842035,1760904657595,-500.0,0.00033972,8]
[391842036,1760904657606,-1186.62,0.00033972,8]
[391842037,1760904657615,-725.52,0.00033972,8]
[391842038,1760904657625,-888.87,0.00033972,8]
[391842039,1760904657635,-500.0,0.00033972,8]
[391842040,1760904657645,-500.0,0.00033972,8]
[391842041,1760904657656,-173.10439094,0.00033972,8]
[391842042,1760904657666,-500.0,0.00033972,8]
[391842043,1760904657676,-508.11,0.00033972,8]
[391842044,1760904657687,-4330.59,0.00033972,2]
[391842045,1760904657696,-849.17,0.00033972,8]
[391842046,1760904657707,-821.63,0.00033972,8]
[391842047,1760904657717,-500.0,0.00033972,8]
[391842048,1760904657727,-500.0,0.00033972,8]
[391842049,1760904657737,-500.0,0.00033972,8]
[391842050,1760904657747,-502.38,0.00033972,8]
[391842051,1760904657760,-500.0,0.00033972,8]
[391842052,1760904657770,-500.0,0.00033972,8]
[391842053,1760904657780,-201.39176232,0.00033972,8]
[391842054,1760904657790,-500.0,0.00033972,8]
[391842055,1760904657801,-1334.8,0.00033972,8]
[391842056,1760904657811,-467.51503535,0.00033972,8]
[391842057,1760904657821,-500.0,0.00033972,8]
[391842058,1760904657832,-500.0,0.00033972,8]
[391842059,1760904657842,-1079.96,0.00033972,8]
[391842060,1760904657852,-500.0,0.00033972,8]
[391842061,1760904657861,-500.0,0.00033972,8]
[391842062,1760904657870,-1341.47,0.00033972,8]
[391842063,1760904657880,-515.88,0.00033972,8]
[391842064,1760904657892,-500.0,0.00033972,8]
[391842065,1760904657902,-677.16,0.00033972,8]
[391842066,1760904657912,-500.0,0.00033972,8]
[391842067,1760904657922,-500.0,0.00033972,8]
[391842068,1760904657931,-500.0,0.00033972,8]
[391842069,1760904657941,-500.0,0.00033972,8]
[391842070,1760904657952,-500.0,0.00033972,8]
[391842071,1760904657964,-500.0,0.00033972,8]
[391842072,1760904657974,-500.0,0.00033972,8]
[391842073,1760904657984,-751.77,0.00033972,2]
[391842074,1760904657994,-500.0,0.00033972,8]
[391842075,1760904658004,-500.0,0.00033972,8]
[391842076,1760904658014,-500.0,0.00033972,8]
[391842077,1760904658026,-500.0,0.00033972,8]
[391842078,1760904658036,-500.0,0.00033972,8]
[391842079,1760904658046,-500.0,0.00033972,8]
[391842080,1760904658057,-1129.79,0.00033972,8]
[391842081,1760904658067,-792.06,0.00033972,8]
[391842082,1760904658078,-538.55,0.00033972,2]
[391842083,1760904658088,-500.0,0.00033972,8]
[391842084,1760904658099,-500.0,0.00033972,8]
[391842085,1760904658109,-411.0,0.00034025,7]
[391842086,1760904658119,-500.0,0.0003409,2]
[391842087,1760904658128,-500.0,0.0003409,2]
[391842088,1760904658138,-500.0,0.0003409,2]
[391842089,1760904658149,-617.40240384,0.00034096,2]
[391842090,1760904658161,-1535.63132405,0.00034146,2]
[391842091,1760904658171,-647.78213638,0.00034146,2]
[391842092,1760904658180,-198.33591016,0.00034146,2]
[391842093,1760904658190,-1917.0,0.00034164,2]
[391842094,1760904658199,-180.0,0.00034187,30]
[391842095,1760904658210,-180.0,0.00034187,30]
[391842096,1760904658220,-196.19610922,0.00034187,30]
[391842097,1760904658230,-151.0,0.00034188,30]
[391842098,1760904658240,-822.0,0.0003419,7]
[391842099,1760904658250,-822.0,0.0003419,7]
[391842100,1760904658261,-200.0,0.0003419,2]
[391842101,1760904658271,-160.4167004,0.0003419,7]
[391842102,1760904658281,-822.0,0.0003419,7]
[391842103,1760904658291,-822.0,0.0003419,7]
[391842104,1760904658301,-817.0,0.0003419,7]
[391842105,1760904658310,-522.42,0.00034195,8]
[391842106,1760904658320,-522.42,0.00034195,8]
[391842107,1760904658330,-522.42,0.00034195,8]
[391842108,1760904658339,-522.42,0.00034195,8]
[391842109,1760904658349,-522.42,0.00034195,8]
[391842110,1760904658359,-522.42,0.00034195,8]
[391842111,1760904658368,-522.42,0.00034195,8]
[391842112,1760904658377,-422.06837184,0.00034195,8]
[391842113,1760904658629,-100.35162816,0.00034195,8]
[391842114,1760904658639,-238.57318481,0.00034196,30]
[391842115,1760904658845,-500.0,0.00018999,2]
[391842116,1760904658855,-500.0,0.00018999,2]
[391842117,1760904658865,-496.81329831,0.00018999,2]
[391842118,1760904658875,-335.31174303,0.00018999,2]
[391842119,1760904658885,-167.22497428,0.00018999,2]
[391842120,1760904658895,-500.0,0.00018999,2]
[391842121,1760904658905,-500.0,0.00018999,2]
[391842122,1760904658915,-154.55208871,0.00018999,2]
[391842123,1760904658926,-1199.86,0.00031536,2]
[391842124,1760904658936,-946.42681519,0.00034196,30]
[391842125,1760904658946,-3779.81108049,0.00034196,2]
[391842126,1760904658958,-11155.01173266,0.00034196,2]
[391842127,1760904662150,200.0,0.00034196,120]
[391842131,1760904734042,217.15239381,0.00034196,30]
[391842142,1760904963356,200.0,0.00034202,120]
[391842148,1760905212851,-180.76618595,0.00015101,2]
[391842149,1760905212872,-2500.0,0.00015202,2]
[391842150,1760905212892,-81.62381405,0.00015202,2]
[391842154,1760905261165,200.0,0.00034191,120]
[391842159,1760905561252,200.0,0.00034191,120]
[391842161,1760905599858,209.35,0.00011856,2]
[391842162,1760905600050,209.35,0.0001248,2]
[391842163,1760905600255,209.35,0.00013103,2]
[391842164,1760905686820,-209.35,0.00013727,2]
[391842165,1760905686843,-394.65,0.00013883,2]
[391842166,1760905689561,-193.46494146,0.00013883,2]
[391842167,1760905693254,-553.95168362,0.00013883,2]
[391842168,1760905693279,-114.63207903,0.00013883,2]
[391842171,1760905699451,-80.36792097,0.00013883,2]
[391842172,1760905699473,-221.16713757,0.00013961,2]
[391842173,1760905700899,-78.83286243,0.00013961,2]
[391842174,1760905700921,-202.86863757,0.00014039,2]
[391842214,1760905746823,-128.17450032,0.00014039,2]
[391842215,1760905746846,-98.50946702,0.00014117,2]
[391842217,1760905748499,-250.0,0.00014117,2]
[391842219,1760905750718,-254.83489232,0.00014117,2]
[391842220,1760905752326,-152.75873485,0.00014117,2]
[391842223,1760905754403,-181.33281669,0.00014117,2]
[391842224,1760905755910,-166.70255021,0.00014117,2]
[391842226,1760905758006,-151.9646331,0.00014117,2]
[391842229,1760905760191,-264.35216552,0.00014117,2]
[391842230,1760905776806,-435.76306031,0.00014117,2]
[391842231,1760905779588,-311.10736583,0.00014117,2]
[391842234,1760905782384,-232.67431415,0.00014117,2]
[391842235,1760905782407,-195.0,0.00014117,2]
[391842236,1760905782428,-93.27398689,0.00014156,2]
[391842237,1760905784348,-206.72601311,0.00014156,2]
[391842238,1760905784374,-31.80724645,0.00014195,2]
[391842259,1760905831646,-180.76618594,0.00014095,2]
[391842260,1760905831656,-352.93356825,0.00014195,2]
[391842261,1760905831666,-241.24429689,0.00014195,2]
[391842262,1760905831676,-209.35,0.00014351,2]
[391842263,1760905831690,-179.20501541,0.00014402,2]
[391842264,1760905831703,-93.23251631,0.00014402,2]
[391842265,1760905831713,-2500.0,0.00014479,2]
[391842266,1760905831723,-186.01183543,0.0001494,2]
[391842267,1760905831734,-1000.0,0.00014941,2]
[391842268,1760905831748,-500.0,0.00014973,2]
[391842269,1760905831759,-500.0,0.00014973,2]
[391842270,1760905831769,-501.55726296,0.00014973,2]
[391842271,1760905831778,-500.0,0.00014973,2]
[391842272,1760905831788,-501.89347945,0.00014973,2]
[391842273,1760905831799,-1200.0,0.00014974,2]
[391842274,1760905831808,-209.35,0.00014975,2]
[391842275,1760905831819,-1256.7,0.0001499,2]
[391842276,1760905831829,-1200.0,0.00014998,2]
[391842277,1760905831839,-300.0,0.00014998,2]
[391842278,1760905831848,-300.0,0.00014998,2]
[391842279,1760905831857,-500.0,0.00014999,2]
[391842280,1760905831867,-500.0,0.00014999,2]
[391842281,1760905831877,-500.0,0.00014999,2]
[391842282,1760905831886,-500.0,0.00014999,2]